bitfinex/quotes_BTCUSD_20260126
["timestamp","ask_amount","ask_price","bid_price","bid_amount"]
[1769426989931,0.60333702,87813.0,87809.0,0.0607618]
[1769426990266,0.02499999,87812.0,87810.0,0.02012792]
[1769426990426,0.02499999,87812.0,87808.0,0.04556]
[1769426992042,0.02384095,87812.0,87808.0,0.04556]
[1769426992762,0.02384095,87812.0,87803.0,0.17496]
[1769426992983,0.02396274,87812.0,87803.0,0.22052]
[1769426993178,0.02396274,87812.0,87803.0,0.17057]
[1769426993388,0.02453336,87822.0,87812.0,0.00108242]
[1769426993589,0.02846699,87821.0,87812.0,0.00014004]
[1769426993827,0.05300035,87821.0,87812.0,0.00014004]
[1769426994038,0.02846699,87821.0,87812.0,0.00014004]
[1769426994228,0.02453336,87820.0,87812.0,0.00014004]
[1769426994474,0.02845799,87819.0,87812.0,0.00014004]
[1769426994830,0.60333702,87816.0,87812.0,0.00014004]
[1769426995207,0.02453336,87811.0,87800.0,1e-08]
[1769426995407,0.02453336,87811.0,87800.0,0.00013989]
[1769426996497,0.60333702,87818.0,87800.0,0.00013989]
[1769426996693,0.02453336,87817.0,87800.0,0.00013989]
[1769426996875,0.02453336,87817.0,87800.0,0.27283243]
[1769426997543,0.01138614,87826.0,87807.0,0.84469671]
[1769426997760,0.60333702,87825.0,87807.0,0.57200417]
[1769426997960,0.60333702,87824.0,87807.0,0.57200417]
[1769426998237,0.02453336,87823.0,87807.0,0.57200417]
[1769426998526,0.02453336,87823.0,87802.0,0.0056564]
[1769426998527,0.60333702,87822.0,87802.0,0.57766057]
[1769426998727,0.02453336,87820.0,87802.0,0.57766057]
[1769426999628,0.46044297,87821.0,87802.0,0.57766057]
[1769427000256,0.02846731,87820.0,87803.0,0.02461955]
[1769427000446,0.60333702,87819.0,87803.0,0.59662372]
[1769427000851,0.60333702,87819.0,87804.0,0.00114343]
[1769427001653,0.02453336,87822.0,87804.0,0.00114343]
[1769427001885,0.60333702,87835.0,87811.0,0.57200417]
[1769427002090,0.0002043,87839.0,87820.0,0.27269254]
[1769427002294,0.60333702,87835.0,87821.0,0.17496]
[1769427002510,0.60333702,87832.0,87821.0,0.17496]
[1769427002630,0.02453336,87830.0,87821.0,0.17496]
[1769427002832,0.02453336,87830.0,87820.0,0.17496]
[1769427003024,0.02453336,87828.0,87820.0,0.17496]
[1769427004010,0.02453336,87828.0,87809.0,0.06832981]
[1769427004011,0.61333702,87820.0,87802.0,0.58207184]
[1769427004296,0.60333702,87820.0,87805.0,0.17496]
[1769427004637,0.02453336,87823.0,87805.0,0.74696417]
[1769427004861,0.02453336,87823.0,87806.0,0.57200417]
[1769427005152,0.27269254,87830.0,87810.0,0.27269254]
[1769427005377,0.02453336,87828.0,87811.0,0.57200417]
[1769427005541,0.02846505,87827.0,87811.0,0.57200417]
[1769427007016,0.02846505,87827.0,87812.0,0.22052]
[1769427010716,0.02846537,87826.0,87812.0,0.22052]
[1769427012547,0.02846537,87826.0,87812.0,0.23190796]
[1769427012751,0.02453336,87827.0,87812.0,0.23190796]
[1769427013170,0.02453336,87827.0,87812.0,0.79252417]
[1769427013350,0.02453336,87827.0,87813.0,0.01138783]
[1769427013973,0.02453336,87827.0,87812.0,0.86085189]
[1769427014203,0.02453336,87827.0,87814.0,0.0113877]
[1769427014406,0.0002043,87839.0,87821.0,0.62893807]
[1769427014407,0.02453336,87838.0,87821.0,0.62893807]
[1769427014643,0.01390339,87837.0,87823.0,0.58207184]
[1769427014858,0.0002043,87839.0,87823.0,0.58207184]
[1769427015067,0.02473766,87839.0,87823.0,0.58207184]
[1769427015274,0.01390339,87838.0,87823.0,0.58207184]
[1769427015456,0.01390339,87838.0,87820.0,0.27269254]
[1769427015630,0.02453336,87836.0,87820.0,0.27269254]
[1769427016043,0.02453336,87836.0,87818.0,0.57200417]
[1769427016250,0.02453336,87836.0,87819.0,0.00451171]
[1769427016449,0.02453336,87835.0,87820.0,0.27269254]
[1769427018733,0.02377644,87834.0,87821.0,0.00451103]
[1769427019335,0.65781915,87834.0,87821.0,0.00451103]
[1769427019532,0.02377644,87833.0,87821.0,0.00451103]
[1769427019766,0.02377644,87833.0,87818.0,0.57200417]
[1769427020094,0.02377644,87833.0,87820.0,0.27269254]
[1769427020215,0.02377644,87833.0,87821.0,0.02277359]
[1769427024596,0.02377644,87833.0,87821.0,0.03416038]
[1769427024889,0.68179989,87839.0,87823.0,0.01138653]
[1769427025102,0.68179989,87839.0,87824.0,0.02277281]
[1769427025313,0.68179989,87839.0,87825.0,0.17496]
[1769427025486,0.68179989,87839.0,87826.0,0.02277229]
[1769427026063,0.01,87826.0,87824.0,0.17496]
[1769427026451,0.65781915,87831.0,87824.0,0.17496]
[1769427026858,0.02377644,87832.0,87824.0,0.17496]
[1769427031522,0.02377644,87831.0,87824.0,0.17496]
[1769427031745,0.68159559,87831.0,87824.0,0.17496]
[1769427034079,0.02377644,87831.0,87824.0,0.17496]
[1769427034309,0.02377644,87831.0,87825.0,0.0046237]
[1769427036791,0.0002043,87839.0,87825.0,0.0046237]
[1769427036995,0.02377644,87838.0,87825.0,0.0046237]
[1769427037134,0.05223824,87837.0,87825.0,0.0046237]
[1769427037329,0.02377644,87836.0,87825.0,0.0046237]
[1769427038002,0.02377644,87835.0,87825.0,0.0046237]
[1769427041952,0.02408594,87835.0,87825.0,0.0046237]
[1769427044377,0.02408594,87835.0,87826.0,0.00465933]
[1769427044589,0.02408594,87835.0,87821.0,0.00465933]
[1769427045459,0.02408594,87835.0,87821.0,0.01604612]
[1769427045673,0.02408594,87835.0,87821.0,0.00465933]
[1769427045866,0.02408594,87835.0,87822.0,0.63278893]
[1769427046072,0.02408594,87835.0,87823.0,0.00465922]
[1769427046352,0.02408594,87835.0,87824.0,0.0113864]
[1769427046554,0.02408594,87835.0,87825.0,0.00465911]
[1769427046760,0.0003095,87835.0,87825.0,0.00465911]
[1769427057788,0.61839979,87821.0,87805.0,0.17006367]
[1769427058001,0.02458112,87818.0,87800.0,0.93547188]
[1769427058213,0.02458112,87817.0,87801.0,0.01138939]
[1769427058621,0.02458112,87817.0,87801.0,0.67413236]
[1769427058823,0.02458112,87817.0,87803.0,0.01138913]
[1769427059430,0.02458112,87817.0,87803.0,0.06833464]
[1769427059842,0.02458112,87817.0,87803.0,0.01138913]
[1769427060255,0.02458112,87817.0,87802.0,0.06833531]
[1769427060256,0.02458112,87817.0,87802.0,0.01138926]
[1769427060465,0.02458112,87817.0,87801.0,0.66274297]
[1769427060669,0.02458112,87817.0,87802.0,0.0022756]
[1769427061102,0.02458112,87817.0,87803.0,0.66274297]
[1769427061349,0.02458112,87817.0,87804.0,0.00227554]
[1769427061771,0.61839979,87817.0,87800.0,0.27272891]
[1769427062010,0.00986011,87800.0,87786.0,0.67859721]
[1769427062207,0.00991857,87800.0,87786.0,0.66274297]
[1769427062413,0.03449969,87800.0,87787.0,0.17608707]
[1769427062592,0.02463958,87800.0,87787.0,0.17608707]
[1769427064068,0.02463958,87800.0,87787.0,0.00112707]
[1769427064273,0.02463958,87800.0,87787.0,0.17608707]
[1769427065282,0.02463958,87800.0,87785.0,0.00112707]
[1769427065283,0.61839979,87799.0,87785.0,0.00112707]
[1769427065490,0.64298091,87797.0,87783.0,0.00112843]
[1769427065641,0.64298091,87797.0,87782.0,0.00128553]
[1769427067567,0.61839979,87797.0,87782.0,0.00128553]
[1769427067771,0.02458112,87796.0,87782.0,0.00128553]
[1769427068522,0.61839979,87795.0,87782.0,0.0001571]
[1769427068779,0.02458112,87792.0,87782.0,0.0001571]
[1769427068953,0.61839979,87790.0,87782.0,0.0001571]
[1769427069223,0.17496,87796.0,87782.0,0.0001571]
[1769427069224,0.02458112,87789.0,87782.0,0.0001571]
[1769427069428,0.61839979,87786.0,87773.0,0.0001571]
[1769427069608,0.61839979,87782.0,87773.0,0.0001571]
[1769427069828,0.61839979,87781.0,87773.0,0.0001571]
[1769427070033,0.02458112,87780.0,87773.0,0.0001571]
[1769427070252,0.61839979,87779.0,87773.0,0.0001571]
[1769427070835,0.61839979,87791.0,87773.0,0.0001571]
[1769427070971,0.02458112,87788.0,87773.0,0.0001571]
[1769427071168,0.61839979,87785.0,87773.0,0.0001571]
[1769427072680,0.04556,87794.0,87775.0,0.27258902]
[1769427072857,0.04556,87794.0,87780.0,0.27258902]
[1769427073111,0.66395979,87794.0,87777.0,0.02283553]
[1769427074350,0.02458112,87793.0,87777.0,0.02283553]
[1769427074558,0.61839979,87792.0,87777.0,0.02283553]
[1769427075302,0.61839979,87790.0,87771.0,0.66274297]
[1769427075634,0.64298091,87790.0,87771.0,0.66274297]
[1769427075860,0.48183566,87790.0,87771.0,0.66274297]
[1769427076050,0.48183566,87790.0,87771.0,0.6855785]
[1769427078829,0.48183566,87790.0,87772.0,0.02324399]
[1769427079097,0.63516414,87788.0,87770.0,0.27258902]
[1769427079304,0.63516414,87786.0,87770.0,0.27258902]
[1769427080262,0.63516414,87786.0,87770.0,0.28398243]
[1769427080466,0.66005289,87786.0,87770.0,0.28398243]
[1769427080644,0.66005289,87786.0,87769.0,0.01159354]
[1769427080802,0.02488875,87785.0,87769.0,0.06856099]
[1769427081004,0.63516414,87784.0,87770.0,0.27258902]
[1769427081978,0.63516414,87784.0,87770.0,0.28398243]
[1769427082346,0.63516414,87784.0,87770.0,0.27258902]
[1769427083623,0.63516414,87784.0,87770.0,0.28398243]
[1769427084227,0.63516414,87784.0,87769.0,0.0002]
[1769427084433,0.63516414,87784.0,87770.0,0.27258902]
[1769427085949,0.63516414,87784.0,87769.0,0.0002]
[1769427086155,0.63516414,87780.0,87769.0,0.0002]
[1769427087839,0.63516414,87780.0,87770.0,0.27258902]
[1769427087993,0.01908414,87789.0,87770.0,0.27258902]
[1769427088337,0.63516414,87787.0,87770.0,0.36419296]
[1769427088493,0.63516414,87785.0,87770.0,0.29583301]
[1769427089990,0.63516414,87785.0,87770.0,0.30722642]
[1769427090555,0.63516414,87785.0,87770.0,0.29583301]
[1769427091930,0.63516414,87785.0,87769.0,0.0002]
[1769427092129,0.64975056,87785.0,87769.0,0.0002]
[1769427092661,0.63516414,87783.0,87769.0,0.0002]
[1769427093720,0.63516414,87783.0,87770.0,0.02324399]
[1769427095443,0.63516414,87793.0,87772.0,0.667958]
[1769427095651,0.27258902,87790.0,87774.0,0.02324399]
[1769427095854,0.66364151,87789.0,87774.0,0.02324399]
[1769427096063,0.63516414,87789.0,87774.0,0.02324399]
[1769427096664,0.63516414,87789.0,87774.0,0.03463688]
[1769427097208,0.04556,87794.0,87781.0,0.02324399]
[1769427097621,0.66364021,87793.0,87781.0,0.02324399]
[1769427097831,0.66364021,87793.0,87775.0,0.01139276]
[1769427097832,0.63516414,87793.0,87775.0,0.03463675]
[1769427098034,0.04556,87794.0,87775.0,0.03463675]
[1769427098035,0.63516414,87791.0,87775.0,0.02324399]
[1769427098531,0.63516414,87791.0,87776.0,0.01139263]
[1769427099109,0.63516414,87791.0,87778.0,0.05696154]
[1769427099294,0.63516414,87791.0,87779.0,0.01139224]
[1769427099498,0.63516414,87791.0,87778.0,0.06835391]
[1769427099499,0.63516414,87791.0,87778.0,0.01139237]
[1769427099923,0.63516414,87791.0,87779.0,0.01139224]
[1769427100127,0.63516414,87791.0,87780.0,0.01139211]
[1769427100388,0.04556,87794.0,87780.0,0.01139211]
[1769427100389,0.04556,87794.0,87786.0,0.01139133]
[1769427100799,0.04556,87794.0,87780.0,0.27258902]
[1769427100800,0.0002404,87801.0,87796.0,0.01139004]
[1769427101069,0.0001921,87813.0,87807.0,0.01138861]
[1769427101291,0.0001921,87813.0,87810.0,0.667958]
[1769427101470,0.0001921,87813.0,87805.0,0.03463286]
[1769427101675,0.0001921,87813.0,87807.0,0.01138861]
[1769427101902,0.0001921,87813.0,87806.0,0.01138874]
[1769427102035,0.0001921,87813.0,87807.0,0.02324399]
[1769427103398,0.0001921,87813.0,87803.0,0.01138913]
[1769427103578,0.0001921,87813.0,87803.0,0.03463312]
[1769427104104,0.0001921,87813.0,87804.0,0.011389]
[1769427104301,0.0001921,87813.0,87803.0,0.03463312]
[1769427104447,0.0001921,87813.0,87804.0,0.011389]
[1769427104651,0.0001921,87813.0,87805.0,0.01138887]
[1769427104865,0.0001921,87813.0,87804.0,0.011389]
[1769427105092,0.62682966,87821.0,87805.0,0.01138887]
[1769427105615,0.62682966,87821.0,87806.0,0.01138874]
[1769427106046,0.62682966,87821.0,87807.0,0.01138861]
[1769427106245,0.62682966,87821.0,87806.0,0.01138874]
[1769427106454,0.62682966,87821.0,87806.0,0.03463273]
[1769427106666,0.62682966,87821.0,87807.0,0.01138861]
[1769427107847,0.62682966,87821.0,87806.0,0.02324399]
[1769427108082,0.62682966,87821.0,87806.0,0.03463273]
[1769427108285,0.62682966,87821.0,87807.0,0.01138861]
[1769427108484,0.0001921,87824.0,87810.0,0.27269904]
[1769427108774,0.0001921,87824.0,87812.0,0.01138796]
[1769427108980,0.0001921,87824.0,87811.0,0.02400016]
[1769427109240,0.0001921,87824.0,87811.0,0.03538825]
[1769427109416,0.0001921,87824.0,87812.0,0.01138796]
[1769427109571,0.0001921,87824.0,87811.0,0.02400016]
[1769427109774,0.0001921,87824.0,87812.0,0.01138796]
[1769427110038,0.0001921,87824.0,87813.0,0.01138783]
[1769427110228,0.0001921,87824.0,87811.0,0.02400016]
[1769427110422,0.0001921,87824.0,87812.0,0.01138796]
[1769427110862,0.0001921,87824.0,87811.0,0.09232856]
[1769427111649,0.0001921,87824.0,87812.0,0.01138796]
[1769427111886,0.0001921,87824.0,87814.0,0.0113877]
[1769427112312,0.0001921,87824.0,87813.0,0.06832675]
[1769427112552,0.0001921,87824.0,87813.0,0.01138783]
[1769427112718,0.0001921,87824.0,87818.0,0.02400016]
[1769427112922,0.0001921,87824.0,87818.0,0.01138718]
[1769427113097,0.0001921,87824.0,87818.0,0.02400016]
[1769427113301,0.0001921,87824.0,87818.0,0.06832302]
[1769427113540,0.0001921,87824.0,87818.0,0.03538734]
[1769427114293,0.0001921,87824.0,87818.0,0.02400016]
[1769427114498,0.0001921,87824.0,87821.0,0.02400016]
[1769427114912,0.0001921,87824.0,87821.0,0.09232056]
[1769427115134,0.0001921,87824.0,87822.0,0.02400016]
[1769427115966,0.0001921,87824.0,87822.0,0.08093346]
[1769427116579,0.0001921,87824.0,87823.0,0.08093285]
[1769427117457,0.0001921,87824.0,87823.0,0.73750917]
[1769427117896,0.0001921,87824.0,87823.0,0.68057648]
[1769427118060,0.0001921,87824.0,87823.0,0.73750917]
[1769427118927,0.0001921,87824.0,87823.0,0.08093285]
[1769427122292,0.0001921,87824.0,87823.0,0.02400016]
[1769427122818,0.0001921,87824.0,87823.0,0.08093285]
[1769427124245,0.0001921,87824.0,87823.0,0.73750917]
[1769427124802,0.0456,87835.0,87826.0,0.05693046]
[1769427124999,0.0001921,87836.0,87824.0,0.0113864]
[1769427125224,0.0001921,87836.0,87825.0,0.01138627]
[1769427125425,0.0001921,87836.0,87826.0,0.01138614]
[1769427125878,0.0001921,87836.0,87825.0,0.06831729]
[1769427126016,0.0001921,87836.0,87825.0,0.01138627]
[1769427126212,0.0001921,87836.0,87823.0,0.68057648]
[1769427126418,0.0001921,87836.0,87823.0,0.02400016]
[1769427126616,0.62639499,87838.0,87823.0,0.02400016]
[1769427126957,0.62653513,87838.0,87823.0,0.02400016]
[1769427128262,0.62653513,87838.0,87820.0,0.27269904]
[1769427128560,0.62639499,87836.0,87820.0,0.27269904]
[1769427128720,0.62639499,87836.0,87820.0,0.28408596]
[1769427129410,0.62639499,87836.0,87820.0,0.27269904]
[1769427129969,0.02312289,87833.0,87817.0,0.17496]
[1769427130183,0.64951788,87832.0,87817.0,0.17496]
[1769427133709,0.64951788,87832.0,87815.0,0.01138757]
[1769427133910,0.62639499,87830.0,87813.0,0.21034799]
[1769427134117,0.00014014,87838.0,87813.0,0.01138783]
[1769427134118,0.02312289,87835.0,87813.0,0.01138783]
[1769427134317,0.62639499,87832.0,87812.0,0.05693973]
[1769427134562,0.62639499,87830.0,87812.0,0.05693973]
[1769427134719,0.02312289,87827.0,87812.0,0.05693973]
[1769427134920,0.62639499,87838.0,87815.0,0.01138757]
[1769427135119,0.62639499,87835.0,87820.0,0.27269904]
[1769427135382,0.62644166,87835.0,87820.0,0.27269904]
[1769427137149,0.62644166,87835.0,87820.0,0.28408596]
[1769427137530,0.62644166,87835.0,87820.0,0.27269904]
[1769427138725,0.61778679,87833.0,87820.0,0.27269904]
[1769427139725,0.02343971,87832.0,87813.0,0.07971604]
[1769427139940,0.61778679,87831.0,87814.0,0.0113877]
[1769427141582,0.61778679,87831.0,87814.0,0.068326]
[1769427141767,0.61778679,87829.0,87805.0,0.01138887]
[1769427141974,4.667e-05,87835.0,87810.0,0.27269904]
[1769427141975,0.02343971,87826.0,87810.0,0.27269904]
[1769427142178,0.61778679,87825.0,87810.0,0.27269904]
[1769427143158,0.61778679,87825.0,87810.0,0.32964014]
[1769427143359,0.61778679,87825.0,87810.0,0.27269904]
[1769427144279,0.38965486,87825.0,87810.0,0.27269904]
[1769427152036,0.38965486,87825.0,87810.0,0.3296401]
[1769427152205,0.38965486,87825.0,87810.0,0.28408726]
[1769427152414,0.02846602,87824.0,87810.0,0.28408726]
[1769427153895,0.02846602,87824.0,87810.0,0.27269904]
[1769427157435,0.61778679,87823.0,87810.0,0.27269904]
[1769427158472,0.02343971,87826.0,87810.0,0.27269904]
[1769427158679,0.02846569,87825.0,87810.0,0.28408726]
[1769427158979,0.64625248,87825.0,87810.0,0.27269904]
[1769427159139,0.61778679,87825.0,87810.0,0.28408726]
[1769427159338,0.02846602,87824.0,87810.0,0.28408726]
[1769427159989,0.02846602,87824.0,87811.0,0.01138809]
[1769427160699,0.02846602,87824.0,87811.0,0.06832801]
[1769427160915,0.02846602,87824.0,87811.0,0.01138809]
[1769427161133,0.02846602,87824.0,87811.0,0.06832856]
[1769427162699,0.02846602,87824.0,87811.0,0.03416539]
[1769427163766,0.02846602,87824.0,87812.0,0.01138796]
[1769427164013,0.61778679,87832.0,87816.0,0.0227773]
[1769427164205,0.61778679,87832.0,87816.0,0.03416474]
[1769427164340,0.61778679,87832.0,87816.0,0.0227773]
[1769427164820,4.667e-05,87835.0,87820.0,0.27264987]
[1769427165029,0.02850912,87835.0,87821.0,0.0227773]
[1769427165476,0.61778679,87834.0,87821.0,0.0227773]
[1769427165723,0.0284631,87833.0,87821.0,0.0227773]
[1769427166957,4.667e-05,87835.0,87822.0,0.0227773]
[1769427169161,4.667e-05,87835.0,87822.0,0.03416396]
[1769427169398,4.667e-05,87835.0,87827.0,0.02285575]
[1769427179894,4.667e-05,87835.0,87821.0,0.6504534]
[1769427180104,4.667e-05,87835.0,87822.0,0.03424241]
[1769427180730,4.667e-05,87835.0,87822.0,0.06831965]
[1769427180968,4.667e-05,87835.0,87824.0,0.02285575]
[1769427181380,4.667e-05,87835.0,87825.0,0.02285575]
[1769427182133,4.667e-05,87835.0,87825.0,0.66635456]
[1769427182340,4.667e-05,87835.0,87829.0,0.02285575]
[1769427182751,0.17496,87844.0,87829.0,0.02285575]
[1769427182752,0.17496,87844.0,87831.0,0.59803706]
[1769427182926,0.17496,87844.0,87834.0,0.02285575]
[1769427183580,0.17496,87844.0,87835.0,0.02285575]
[1769427183749,0.17496,87844.0,87837.0,0.02285575]
[1769427184581,0.17496,87844.0,87837.0,0.03424047]
[1769427184782,0.17496,87844.0,87838.0,0.59803706]
[1769427185002,0.17496,87844.0,87840.0,0.02285575]
[1769427186051,0.17496,87844.0,87835.0,0.02285575]
[1769427187146,0.17496,87844.0,87827.0,0.01138602]
[1769427187382,0.1752008,87844.0,87828.0,0.02285575]
[1769427187596,0.1752008,87844.0,87828.0,0.03424164]
[1769427188243,0.1752008,87844.0,87830.0,0.27264987]
[1769427188623,0.1752008,87844.0,87828.0,0.03424164]
[1769427188624,0.79459758,87844.0,87828.0,0.02285575]
[1769427189171,0.79459758,87844.0,87828.0,0.03424164]
[1769427189371,0.79459758,87844.0,87828.0,0.02285575]
[1769427189898,0.79459758,87844.0,87828.0,0.03424164]
[1769427190103,0.79459758,87844.0,87828.0,0.02285575]
[1769427190327,0.79459758,87844.0,87828.0,0.03424164]
[1769427190560,0.79459758,87844.0,87830.0,0.27264987]
[1769427192191,0.64377799,87843.0,87830.0,0.27264987]
[1769427192390,0.64377799,87843.0,87828.0,0.02285575]
[1769427192615,0.64377799,87843.0,87829.0,0.01708772]
[1769427195623,0.64377799,87843.0,87828.0,0.02285575]
[1769427196655,0.64377799,87843.0,87830.0,0.27264987]
[1769427198012,0.64377799,87843.0,87828.0,0.02285575]
[1769427198252,0.64377799,87843.0,87830.0,0.27264987]
[1769427198425,0.64377799,87843.0,87828.0,0.02285575]
[1769427199037,0.64377799,87843.0,87830.0,0.27264987]
[1769427200480,0.64377799,87843.0,87828.0,0.02285575]
[1769427200698,0.64377799,87843.0,87820.0,0.40927996]
[1769427200699,0.64377799,87843.0,87823.0,0.03466491]
[1769427200856,0.56434943,87841.0,87823.0,0.03480505]
[1769427201358,0.56444413,87841.0,87823.0,0.09173757]
[1769427201545,0.56444413,87841.0,87824.0,0.0113864]
[1769427201747,0.56444413,87841.0,87824.0,0.03466478]
[1769427202256,0.56444413,87841.0,87825.0,0.02327838]
[1769427202421,0.56444413,87841.0,87825.0,0.0802095]
[1769427202888,0.56444413,87841.0,87826.0,0.01138614]
[1769427203084,0.56444413,87841.0,87830.0,0.27264987]
[1769427203436,9.47e-05,87841.0,87830.0,0.27264987]
[1769427204458,0.56444413,87841.0,87830.0,0.27264987]
[1769427210198,9.47e-05,87841.0,87830.0,0.27264987]
[1769427218987,9.47e-05,87841.0,87827.0,0.02327838]
[1769427219187,9.47e-05,87841.0,87830.0,0.27264987]
[1769427220343,0.01130955,87844.0,87830.0,0.27264987]
[1769427220553,0.57565898,87844.0,87830.0,0.27264987]
[1769427220763,0.01287493,87843.0,87830.0,0.27264987]
[1769427223792,0.01287493,87843.0,87831.0,0.02327838]
[1769427225157,0.56434943,87849.0,87831.0,0.02327838]
[1769427226842,0.56434943,87849.0,87833.0,0.02327838]
[1769427229776,0.01020743,87848.0,87824.0,0.02359984]
[1769427230118,0.28391594,87850.0,87824.0,0.02359984]
[1769427230119,0.60398191,87847.0,87824.0,0.02359984]
[1769427233126,0.27253291,87840.0,87823.0,0.00014014]
[1769427233407,0.17492,87852.0,87816.0,0.02359984]
[1769427233408,0.60398191,87832.0,87816.0,0.02359984]
[1769427233556,0.60398191,87832.0,87816.0,0.02364651]
[1769427239433,0.60398191,87832.0,87817.0,0.04225]
[1769427239434,0.59377448,87832.0,87817.0,0.04225]
[1769427239634,0.59377448,87832.0,87818.0,0.01904773]
[1769427239838,0.59377448,87832.0,87820.0,0.27253291]
[1769427239980,0.59377448,87832.0,87821.0,0.01864946]
[1769427242531,0.17496,87834.0,87821.0,0.02359984]
[1769427242855,0.17496,87833.0,87821.0,0.04481133]
[1769427243384,0.17496,87833.0,87821.0,0.02359984]
[1769427243539,0.17496,87833.0,87821.0,0.09192036]
[1769427243735,0.17496,87833.0,87821.0,0.03498663]
[1769427243917,0.17496,87833.0,87822.0,0.02277333]
[1769427244145,0.6084797,87837.0,87822.0,0.03415999]
[1769427244354,0.59377448,87835.0,87822.0,0.02277333]
[1769427246348,0.59377448,87835.0,87821.0,0.02359984]
[1769427246771,0.17496,87836.0,87825.0,0.02359984]
[1769427249768,0.76873448,87836.0,87820.0,0.58619274]
[1769427249975,0.76873448,87836.0,87820.0,0.02359984]
[1769427249976,0.59377448,87835.0,87820.0,0.02359984]
[1769427261718,0.02475401,87834.0,87816.0,4.667e-05]
[1769427262035,0.54242446,87833.0,87816.0,4.667e-05]
[1769427262224,0.56717847,87831.0,87816.0,4.667e-05]
[1769427266168,0.51717847,87831.0,87816.0,4.667e-05]
[1769427267163,0.34603836,87831.0,87816.0,4.667e-05]
[1769427285724,0.32128435,87831.0,87816.0,4.667e-05]
[1769427285942,0.32128435,87831.0,87816.0,0.02484525]
[1769427287841,0.32128435,87831.0,87817.0,0.01999408]
[1769427290140,0.32128435,87831.0,87816.0,0.02484525]
[1769427296995,0.32128435,87831.0,87818.0,0.01138718]
[1769427297152,0.32128435,87831.0,87819.0,0.02110925]
[1769427297944,0.32128435,87831.0,87820.0,0.02110901]
[1769427298141,0.32128435,87831.0,87818.0,0.02277437]
[1769427299677,0.19971401,87836.0,87818.0,0.02277437]
[1769427299897,0.5474071,87835.0,87816.0,0.02484525]
[1769427300099,0.43372165,87835.0,87816.0,0.02484525]
[1769427301845,0.19971401,87836.0,87817.0,0.68483674]
[1769427302067,0.54743295,87835.0,87820.0,0.27263362]
[1769427302247,0.43372165,87834.0,87817.0,0.5965267]
[1769427302549,0.02429006,87830.0,87816.0,4.667e-05]
[1769427302759,0.02429006,87828.0,87816.0,4.667e-05]
[1769427302962,0.43372165,87827.0,87816.0,4.667e-05]
[1769427306513,0.45801171,87835.0,87816.0,0.01143411]
[1769427306709,0.17496,87836.0,87822.0,0.02400714]
[1769427306906,0.11370691,87835.0,87823.0,0.02400714]
[1769427307136,0.17496,87836.0,87823.0,0.02400714]
[1769427307352,0.11370066,87835.0,87823.0,0.02400714]
[1769427307506,0.17496,87836.0,87823.0,0.02400714]
[1769427307702,0.11370051,87835.0,87823.0,0.02400714]
[1769427307931,0.17496,87836.0,87823.0,0.02400714]
[1769427308245,0.11369988,87835.0,87823.0,0.02400714]
[1769427308549,0.17496,87836.0,87823.0,0.02400714]
[1769427308777,0.11369954,87835.0,87823.0,0.02400714]
[1769427308911,0.17496,87836.0,87823.0,0.02400714]
[1769427309116,0.11369954,87835.0,87823.0,0.02400714]
[1769427309311,0.17496,87836.0,87823.0,0.02400714]
[1769427309537,0.11369983,87835.0,87823.0,0.02400714]
[1769427309739,0.17496,87836.0,87823.0,0.02400714]
[1769427309943,0.11370043,87835.0,87823.0,0.02400714]
[1769427310137,0.17496,87836.0,87823.0,0.02400714]
[1769427310721,0.17496,87836.0,87823.0,0.03539367]
[1769427310928,0.17496,87836.0,87826.0,0.57251956]
[1769427311148,0.43372165,87842.0,87827.0,0.02400714]
[1769427311572,0.11369348,87841.0,87827.0,0.02400714]
[1769427311775,0.11369348,87840.0,87827.0,0.02400714]
[1769427311927,0.11369348,87839.0,87827.0,0.02400714]
[1769427312197,0.43372165,87842.0,87827.0,0.02400714]
[1769427312371,0.11368756,87841.0,87827.0,0.02400714]
[1769427312628,0.11368756,87840.0,87827.0,0.02400714]
[1769427312771,0.43372165,87842.0,87827.0,0.02400714]
[1769427312975,0.11368806,87841.0,87827.0,0.02400714]
[1769427313178,0.11368806,87840.0,87827.0,0.02400714]
[1769427313401,0.43372165,87842.0,87827.0,0.02400714]
[1769427313751,0.1136829,87841.0,87827.0,0.02400714]
[1769427314051,0.1136829,87840.0,87827.0,0.02400714]
[1769427314242,0.43372165,87842.0,87827.0,0.02400714]
[1769427314399,0.11367864,87841.0,87827.0,0.02400714]
[1769427314616,0.11367864,87840.0,87827.0,0.02400714]
[1769427314818,0.02429006,87843.0,87827.0,0.02400714]
[1769427315039,0.11367868,87842.0,87827.0,0.02400714]
[1769427315238,0.11367868,87841.0,87827.0,0.02400714]
[1769427315443,0.11367868,87840.0,87827.0,0.02400714]
[1769427315754,0.02429006,87843.0,87827.0,0.54960498]
[1769427315994,0.11367451,87842.0,87827.0,0.54960498]
[1769427316201,0.47928165,87846.0,87774.0,0.284146]
[1769427316202,0.11367451,87841.0,87831.0,0.0227708]
[1769427316408,0.04556,87846.0,87834.0,0.0227708]
[1769427317558,0.17496,87848.0,87834.0,0.0227708]
[1769427325480,0.17496,87848.0,87833.0,0.52559784]
[1769427328889,0.19809083,87848.0,87833.0,0.52559784]
[1769427330066,0.19809083,87848.0,87834.0,0.02009742]
[1769427331298,0.0501461,87844.0,87834.0,0.02009742]
[1769427339463,0.02313083,87847.0,87834.0,0.02009742]
[1769427345376,0.02306494,87847.0,87834.0,0.02009742]
[1769427348817,0.02306494,87847.0,87830.0,0.27252697]
[1769427348818,0.46756294,87846.0,87830.0,0.27252697]
[1769427349017,0.02504422,87845.0,87831.0,0.02123665]
[1769427349317,0.02504422,87844.0,87828.0,0.02123665]
[1769427351703,0.02504422,87844.0,87827.0,0.53311489]
[1769427352987,0.02504422,87844.0,87828.0,0.02123761]
[1769427353922,0.02504422,87844.0,87827.0,0.53311489]
[1769427354695,0.02504422,87844.0,87834.0,0.05]
[1769427357257,0.46756294,87845.0,87834.0,0.05]
[1769427357461,0.04186304,87848.0,87834.0,0.05]
[1769427357658,0.11367071,87847.0,87834.0,0.58311489]
[1769427357861,0.11367071,87846.0,87834.0,0.58311489]
[1769427358087,0.11367071,87845.0,87834.0,0.58311489]
[1769427358289,0.02954149,87847.0,87834.0,0.58311489]
[1769427358483,0.14321326,87846.0,87834.0,0.58311489]
[1769427358684,0.11367177,87845.0,87834.0,0.58311489]
[1769427358891,0.02954149,87846.0,87834.0,0.58311489]
[1769427359074,0.11366399,87845.0,87834.0,0.05]
[1769427359275,0.02954149,87846.0,87834.0,0.05]
[1769427359475,0.1136646,87845.0,87834.0,0.05]
[1769427359676,0.02954149,87846.0,87834.0,0.05]
[1769427359857,0.11366447,87845.0,87834.0,0.05]
[1769427360059,0.02954149,87846.0,87834.0,0.05]
[1769427360262,0.11366599,87845.0,87834.0,0.05]
[1769427360620,0.02954149,87846.0,87834.0,0.05]
[1769427360779,0.1136656,87845.0,87834.0,0.05]
[1769427361119,0.02954149,87846.0,87834.0,0.05]
[1769427361335,0.11366522,87845.0,87834.0,0.05]
[1769427361622,0.02954149,87846.0,87834.0,0.05]